bitfinex/quotes_BTCUSD_20241130
["timestamp","ask_amount","ask_price","bid_price","bid_amount"]
[1732990488400,0.0488233,96934.0,96933.0,0.28511344]
[1732990488610,0.0488233,96934.0,96933.0,0.28211344]
[1732990488824,0.1304233,96934.0,96933.0,0.00394944]
[1732990489103,0.1304233,96934.0,96933.0,0.31694563]
[1732990489327,0.2335853,96934.0,96933.0,0.002864]
[1732990489540,0.1304233,96934.0,96933.0,0.00360605]
[1732990489759,0.1324233,96934.0,96933.0,0.00360605]
[1732990489972,0.1304233,96934.0,96933.0,0.00660605]
[1732990490411,0.1334233,96934.0,96933.0,0.00360605]
[1732990490619,0.1354233,96934.0,96933.0,0.00360605]
[1732990492146,0.1414233,96934.0,96933.0,0.00460605]
[1732990499041,0.2445853,96934.0,96933.0,0.00460605]
[1732990499698,0.2445853,96934.0,96933.0,0.001864]
[1732990500181,0.2445853,96934.0,96933.0,0.41186945]
[1732990500656,0.2445853,96934.0,96933.0,0.41462413]
[1732990501310,0.2445853,96934.0,96933.0,0.41462834]
[1732990502011,0.2445853,96934.0,96933.0,0.00461868]
[1732990513483,0.1414233,96934.0,96933.0,0.00461868]
[1732990513721,0.2445853,96934.0,96933.0,0.00461868]
[1732990523526,0.2445853,96934.0,96933.0,0.41460632]
[1732990523740,0.2445853,96934.0,96933.0,0.00461868]
[1732990524201,0.2445853,96934.0,96933.0,0.41460632]
[1732990525387,0.2445853,96934.0,96933.0,0.00461868]
[1732990526094,0.2445853,96934.0,96933.0,0.41486121]
[1732990526364,0.2445853,96934.0,96933.0,0.00461868]
[1732990529770,0.2445853,96934.0,96933.0,0.001864]
[1732990531125,0.2445853,96934.0,96933.0,0.00455259]
[1732990531574,0.2445853,96934.0,96933.0,0.001864]
[1732990532003,0.2445853,96934.0,96933.0,0.00455259]
[1732990532235,0.2445853,96934.0,96933.0,0.001864]
[1732990532236,0.1414233,96934.0,96933.0,0.001864]
[1732990532471,0.1414233,96934.0,96933.0,0.00455259]
[1732990532648,0.1414233,96934.0,96933.0,0.001864]
[1732990532873,0.1414233,96934.0,96933.0,0.00455259]
[1732990533095,0.0949233,96934.0,96933.0,0.105028]
[1732990533320,0.0949233,96934.0,96933.0,0.00455259]
[1732990533552,0.0949233,96934.0,96933.0,0.001864]
[1732990533771,0.0949233,96934.0,96933.0,0.00455259]
[1732990534063,0.0949233,96934.0,96933.0,0.001864]
[1732990534952,0.0949233,96934.0,96933.0,0.00455259]
[1732990536034,0.0949233,96934.0,96933.0,0.10771659]
[1732990536272,0.0133233,96934.0,96933.0,0.10771659]
[1732990543506,0.0133233,96934.0,96933.0,0.42102381]
[1732990544391,0.00313604,96934.0,96933.0,0.42102381]
[1732990546135,0.00486424,96934.0,96933.0,0.25851659]
[1732990546361,0.00486424,96934.0,96933.0,0.26851659]
[1732990547285,0.00486424,96934.0,96933.0,0.26751659]
[1732990547499,0.0017282,96934.0,96933.0,0.26751659]
[1732990547716,0.0017282,96934.0,96933.0,0.26951659]
[1732990548642,0.0017282,96934.0,96933.0,0.27310959]
[1732990549085,0.0017282,96934.0,96933.0,0.26910959]
[1732990549294,0.0017282,96934.0,96933.0,0.27210959]
[1732990553123,0.0016242,96934.0,96933.0,0.27210959]
[1732990553392,0.0016242,96934.0,96933.0,0.28306357]
[1732990554106,0.0016242,96934.0,96933.0,0.38590878]
[1732990554799,0.0016242,96934.0,96933.0,0.53590878]
[1732990562680,0.0010064,96948.0,96945.0,0.417251]
[1732990562950,0.0010064,96948.0,96945.0,0.52009621]
[1732990563188,0.0010064,96948.0,96945.0,0.52234938]
[1732990564949,0.0027282,96946.0,96945.0,0.53134938]
[1732990565220,0.0037282,96946.0,96945.0,0.53734938]
[1732990568120,0.0037282,96946.0,96945.0,0.5481008]
[1732990568567,0.0017282,96957.0,96945.0,0.5481008]
[1732990568568,0.0017282,96957.0,96956.0,0.267239]
[1732990568808,0.0017282,96957.0,96956.0,0.37008421]
[1732990569070,0.0017282,96957.0,96956.0,0.37233608]
[1732990569969,0.0017282,96957.0,96956.0,0.37633608]
[1732990570443,0.0017282,96957.0,96956.0,0.37933608]
[1732990571539,0.0017282,96957.0,96956.0,0.52933608]
[1732990577959,0.0017282,96957.0,96956.0,0.54026503]
[1732990578595,0.0017282,96957.0,96956.0,0.85160478]
[1732990579055,0.0017282,96957.0,96956.0,0.54026503]
[1732990579472,0.0017282,96957.0,96956.0,0.85160478]
[1732990580350,0.0017282,96957.0,96956.0,0.54026503]
[1732990582489,0.0017282,96957.0,96956.0,0.85164888]
[1732990582745,0.0017282,96957.0,96956.0,0.45856503]
[1732990593474,0.0017282,96957.0,96956.0,0.40916503]
[1732990606263,0.0017282,96957.0,96956.0,0.90978965]
[1732990606682,0.0017282,96957.0,96956.0,0.40916503]
[1732990607091,0.0017282,96957.0,96956.0,0.90978965]
[1732990607530,0.0017282,96957.0,96956.0,0.40916503]
[1732990610186,0.0017282,96957.0,96956.0,0.39916503]
[1732990611002,0.0017282,96957.0,96956.0,0.40216503]
[1732990611193,0.0017282,96957.0,96956.0,0.39516503]
[1732990611431,0.0017282,96957.0,96956.0,0.39816503]
[1732990611640,0.0017282,96957.0,96956.0,0.39516503]
[1732990611853,0.0017282,96957.0,96956.0,0.39616503]
[1732990612065,0.0017282,96957.0,96956.0,0.39216503]
[1732990612514,0.0017282,96957.0,96956.0,0.40216503]
[1732990612741,0.0017282,96957.0,96956.0,0.39216503]
[1732990613161,0.0805282,96957.0,96956.0,0.30231982]
[1732990613371,0.0805282,96957.0,96956.0,0.29231982]
[1732990613575,0.0805282,96957.0,96956.0,0.29531982]
[1732990613793,0.0805282,96957.0,96956.0,0.28931982]
[1732990614029,0.0805282,96957.0,96956.0,0.29131982]
[1732990614462,0.0805282,96957.0,96956.0,0.79345034]
[1732990614680,0.0805282,96957.0,96956.0,0.29131982]
[1732990614884,0.0805282,96957.0,96956.0,0.79345034]
[1732990615095,0.0017282,96957.0,96956.0,0.79345034]
[1732990615759,0.0017282,96957.0,96956.0,0.29131982]
[1732990617027,0.0017282,96957.0,96956.0,0.79344191]
[1732990619242,0.0017282,96957.0,96956.0,0.7933994]
[1732990619866,0.0017282,96957.0,96956.0,0.79338212]
[1732990620577,0.0017282,96957.0,96956.0,0.79394595]
[1732990621655,0.0017282,96957.0,96956.0,0.29188365]
[1732990628948,0.0017282,96957.0,96956.0,0.0048157]
[1732990629207,0.2327662,96957.0,96956.0,0.0048157]
[1732990629667,0.2327662,96957.0,96956.0,0.002]
[1732990629900,0.1296282,96957.0,96949.0,0.6052083]
[1732990630136,0.1296282,96957.0,96956.0,0.002]
[1732990630366,0.2327662,96957.0,96956.0,0.002]
[1732990630793,0.2327662,96957.0,96956.0,0.31502531]
[1732990631078,0.1296282,96957.0,96956.0,0.00487412]
[1732990631286,0.1376282,96957.0,96956.0,0.00487412]
[1732990631513,0.1376282,96957.0,96956.0,0.002]
[1732990631728,0.1376282,96957.0,96956.0,0.00488571]
[1732990631984,0.1376282,96957.0,96952.0,0.103143]
[1732990632223,0.1376282,96957.0,96956.0,0.00288571]
[1732990632463,0.1326282,96957.0,96954.0,0.103141]
[1732990632665,0.1406282,96957.0,96956.0,0.001]
[1732990632855,0.1376282,96957.0,96956.0,0.00388571]
[1732990633091,0.1406282,96957.0,96956.0,0.00288571]
[1732990633224,0.1466282,96957.0,96956.0,0.31572363]
[1732990633459,0.1326282,96957.0,96956.0,0.00288571]
[1732990633684,0.1296282,96957.0,96956.0,0.00288571]
[1732990633918,0.1376282,96957.0,96956.0,0.00288571]
[1732990634749,0.1376282,96957.0,96956.0,0.10602471]
[1732990634977,0.1376282,96957.0,96956.0,0.00288571]
[1732990635646,0.1376282,96957.0,96955.0,0.31283792]
[1732990635880,0.1376282,96957.0,96954.0,0.31283792]
[1732990636098,0.1376282,96957.0,96955.0,0.31283792]
[1732990636281,0.1376282,96957.0,96955.0,0.00288586]
[1732990636555,0.1296282,96957.0,96955.0,0.00288586]
[1732990636769,0.1316282,96957.0,96955.0,0.00288586]
[1732990636965,0.1376282,96957.0,96954.0,0.41588671]
[1732990637140,0.1376282,96957.0,96956.0,0.00288571]
[1732990637308,0.1376282,96957.0,96955.0,0.00288586]
[1732990637509,0.1376282,96957.0,96956.0,0.00288571]
[1732990637938,0.1376282,96957.0,96954.0,0.31274571]
[1732990638153,0.1376282,96957.0,96956.0,0.00288571]
[1732990638360,0.1376282,96957.0,96956.0,0.103139]
[1732990638540,0.1376282,96957.0,96956.0,0.10602471]
[1732990638760,0.0906282,96957.0,96956.0,0.10577456]
[1732990638981,0.0886282,96957.0,96956.0,0.10577456]
[1732990639205,0.0826282,96957.0,96956.0,0.10577456]
[1732990639425,0.0846282,96957.0,96956.0,0.10577456]
[1732990639839,0.0886282,96957.0,96956.0,0.10577456]
[1732990640049,0.0826282,96957.0,96956.0,0.10577456]
[1732990640266,0.0876282,96957.0,96956.0,0.10577456]
[1732990640496,0.0067282,96957.0,96956.0,0.10577456]
[1732990640927,0.0067282,96957.0,96956.0,0.41852027]
[1732990641350,0.0067282,96957.0,96956.0,0.10577456]
[1732990642198,0.0027282,96957.0,96956.0,0.10577456]
[1732990642406,0.0037282,96957.0,96956.0,0.10577456]
[1732990642621,0.0027282,96957.0,96956.0,0.10577456]
[1732990642854,0.0017282,96957.0,96956.0,0.10577456]
[1732990643090,0.0027282,96957.0,96956.0,0.10577456]
[1732990643721,0.0027282,96957.0,96956.0,0.10677456]
[1732990643940,1e-08,96959.0,96956.0,0.00388571]
[1732990644221,1e-08,96959.0,96958.0,0.103137]
[1732990644462,1e-08,96959.0,96958.0,0.1060109]
[1732990645323,0.00100001,96959.0,96958.0,0.1060109]
[1732990645751,1e-08,96959.0,96958.0,0.1060109]
[1732990645973,0.00100001,96959.0,96958.0,0.1060109]
[1732990646452,0.00100001,96959.0,96958.0,0.1070109]
[1732990647277,0.00100001,96959.0,96958.0,0.41966902]
[1732990652233,0.00100001,96959.0,96958.0,0.1070109]
[1732990652482,0.00100001,96959.0,96958.0,0.41971807]
[1732990653448,0.00100001,96959.0,96958.0,0.1070109]
[1732990660419,0.02142612,96959.0,96958.0,0.1078748]
[1732990662789,0.02142612,96959.0,96958.0,0.18000029]
[1732990663244,0.00055068,96959.0,96958.0,0.18000029]
[1732990663495,0.00055068,96959.0,96958.0,0.2928455]
[1732990663732,0.00055068,96959.0,96958.0,0.29102001]
[1732990668744,0.00055068,96959.0,96958.0,0.30223443]
[1732990672625,0.00227848,96959.0,96958.0,0.30223443]
[1732990674595,0.00227848,96959.0,96958.0,0.14208922]
[1732990688396,0.00227848,96959.0,96958.0,0.01595222]
[1732990689037,0.00227848,96959.0,96958.0,0.01307832]
[1732990689242,0.00227848,96959.0,96958.0,0.01595335]
[1732990696082,0.00227848,96959.0,96958.0,0.00473893]
[1732990700253,0.15281448,96959.0,96958.0,0.00473893]
[1732990701153,0.04967848,96959.0,96958.0,0.00473893]
[1732990701597,0.15281448,96959.0,96958.0,0.00473893]
[1732990703174,0.04967848,96959.0,96958.0,0.00473893]
[1732990703385,0.15281448,96959.0,96958.0,0.00473893]
[1732990704265,0.04967848,96959.0,96958.0,0.00473893]
[1732990706050,0.00227848,96959.0,96958.0,0.10787593]
[1732990708848,0.00227848,96959.0,96958.0,0.00473893]
[1732990709076,0.00227848,96959.0,96958.0,0.10787593]
[1732990709381,0.00227848,96959.0,96958.0,0.00473893]
[1732990709609,0.00227848,96959.0,96958.0,0.10787593]
[1732990717270,0.00227848,96959.0,96958.0,0.42072038]
[1732990717956,0.00227848,96959.0,96958.0,0.10787593]
[1732990718208,0.00227848,96959.0,96958.0,0.26147593]
[1732990732807,0.00227848,96959.0,96958.0,1.02638344]
[1732990733040,0.00227848,96959.0,96958.0,0.52432114]
[1732990734028,0.0017278,96959.0,96958.0,0.52332114]
[1732990734257,0.0027278,96959.0,96958.0,0.53032114]
[1732990735428,0.0027278,96959.0,96958.0,0.53532114]
[1732990740548,0.0027278,96959.0,96958.0,0.39472114]
[1732990741040,0.0027278,96959.0,96958.0,0.40472114]
[1732990741279,0.0027278,96959.0,96958.0,0.39472114]
[1732990742036,0.0027278,96959.0,96958.0,0.40472114]
[1732990742745,0.0027278,96959.0,96958.0,0.30187593]
[1732990746143,0.0027278,96959.0,96958.0,0.29187593]
[1732990747955,0.02024867,96963.0,96962.0,0.103133]
[1732990748411,0.02024867,96963.0,96962.0,0.10573476]
[1732990749297,0.02024867,96963.0,96962.0,0.10973476]
[1732990750131,0.02024867,96963.0,96962.0,0.11473476]
[1732990750340,0.02024867,96963.0,96962.0,0.25057997]
[1732990750983,0.02024867,96963.0,96962.0,0.24157997]
[1732990751187,0.02024867,96963.0,96962.0,0.24557997]
[1732990751407,0.02024867,96963.0,96962.0,0.25057997]
[1732990751620,0.02024867,96963.0,96962.0,0.24557997]
[1732990751868,0.02024867,96963.0,96962.0,0.24357997]
[1732990752097,0.02024867,96963.0,96962.0,0.24557997]
[1732990754356,0.02111277,96963.0,96962.0,0.24557997]
[1732990754592,0.02111277,96963.0,96962.0,0.24203897]
[1732990755472,0.02111277,96963.0,96962.0,0.25301102]
[1732990761513,0.0008641,96963.0,96962.0,0.90507332]
[1732990761745,0.0008641,96963.0,96962.0,0.52721102]
[1732990766999,0.0008641,96963.0,96962.0,0.52893902]
[1732990767503,0.0008641,96963.0,96962.0,0.35593902]
[1732990770883,0.0008641,96963.0,96962.0,0.27053902]
[1732990771175,0.0008641,96963.0,96962.0,0.28053902]
[1732990773000,0.0008641,96963.0,96962.0,0.27053902]
[1732990773237,0.0008641,96963.0,96962.0,0.23173902]
[1732990776788,0.0471,96969.0,96965.0,0.206258]
[1732990777046,0.06770614,96973.0,96970.0,0.103124]
[1732990777557,0.06770614,96973.0,96970.0,0.10534318]
[1732990778018,0.06770614,96973.0,96970.0,0.10552262]
[1732990778948,0.06770614,96973.0,96970.0,0.10652262]
[1732990779641,0.02030614,96973.0,96970.0,0.10652262]
[1732990783247,0.01669765,96973.0,96972.0,0.103122]
[1732990783660,0.01669765,96973.0,96972.0,0.10534546]
[1732990784555,0.01669765,96973.0,96972.0,0.10634546]
[1732990784791,0.01769765,96973.0,96972.0,0.10634546]
[1732990785883,0.00748867,96973.0,96972.0,0.10634546]
[1732990789126,0.00748867,96973.0,96972.0,0.11762458]
[1732990790971,0.00301935,96973.0,96972.0,0.11762458]
[1732990791595,0.00388335,96973.0,96972.0,0.11762458]
[1732990791905,0.00388335,96973.0,96972.0,0.01450258]
[1732990792108,0.00388335,96973.0,96972.0,0.11762458]
[1732990792425,0.00388335,96973.0,96972.0,0.01450258]
[1732990792632,0.13538335,96973.0,96972.0,0.01450258]
[1732990793009,0.23850435,96973.0,96972.0,0.01227912]
[1732990793277,0.23850435,96973.0,96972.0,0.001]
[1732990793734,0.13538335,96973.0,96972.0,0.001]
[1732990794160,0.13538335,96973.0,96972.0,0.00322526]
[1732990794383,0.13538335,96973.0,96972.0,0.001]
[1732990794599,0.13538335,96973.0,96972.0,0.00322526]
[1732990794776,0.13538335,96973.0,96972.0,0.104122]
[1732990794929,0.13538335,96973.0,96972.0,0.10634726]
[1732990795511,0.13538335,96973.0,96972.0,0.00322526]
[1732990796553,0.13538335,96973.0,96972.0,0.10634726]
[1732990796791,0.13497344,96973.0,96972.0,0.10634726]
[1732990797229,0.13497344,96973.0,96972.0,0.00322526]
[1732990798081,0.13497344,96973.0,96972.0,0.10634726]
[1732990799155,0.08647344,96973.0,96972.0,0.10634726]
[1732990800206,0.08647344,96973.0,96972.0,0.00322526]
[1732990800625,0.08647344,96973.0,96972.0,0.10634726]
[1732990801268,0.08647344,96973.0,96972.0,0.00322526]
[1732990801500,0.18959444,96973.0,96972.0,0.00322526]
[1732990801917,0.13297344,96973.0,96972.0,0.001]
[1732990802125,0.13297344,96973.0,96972.0,0.00322526]
[1732990802544,0.23609444,96973.0,96972.0,0.00322526]
[1732990802754,0.23609444,96973.0,96972.0,0.001]
[1732990803452,0.23609444,96973.0,96972.0,0.00322526]
[1732990803656,0.23609444,96973.0,96972.0,0.001]
[1732990803875,0.23609444,96973.0,96972.0,0.00322526]
[1732990804083,0.13297344,96973.0,96972.0,0.001]
[1732990804307,0.23609444,96973.0,96972.0,0.00495306]
[1732990804519,0.23609444,96973.0,96972.0,0.0027278]
[1732990804722,0.23609444,96973.0,96972.0,0.00495306]
[1732990804905,0.23609444,96973.0,96972.0,0.0027278]
[1732990805125,0.23609444,96973.0,96972.0,0.31544767]
[1732990805337,0.23609444,96973.0,96972.0,0.0027278]
[1732990805541,0.23609444,96973.0,96972.0,0.00495306]
[1732990806673,0.23609444,96973.0,96972.0,0.0027278]
[1732990807125,0.36193965,96973.0,96972.0,0.0027278]
[1732990809284,0.36193965,96973.0,96972.0,0.41298102]
[1732990809764,0.36193965,96973.0,96972.0,0.00533609]
[1732990810181,0.36193965,96973.0,96972.0,0.41291607]
[1732990810630,0.36193965,96973.0,96972.0,0.41552436]
[1732990811258,0.36193965,96973.0,96972.0,0.00533609]
[1732990818702,0.36193965,96973.0,96972.0,0.0027278]
[1732990820306,0.36193965,96973.0,96972.0,0.00534234]
[1732990821245,0.36193965,96973.0,96972.0,0.0027278]
[1732990822444,0.36193965,96973.0,96972.0,0.00534234]
[1732990823763,0.36193965,96973.0,96972.0,0.0027278]
[1732990824174,0.36193965,96973.0,96972.0,0.00534234]
[1732990824398,0.36193965,96973.0,96972.0,0.0027278]
[1732990825077,0.36193965,96973.0,96972.0,0.00534234]
[1732990825562,0.36193965,96973.0,96972.0,0.0027278]
[1732990826293,0.36193965,96973.0,96972.0,0.00534234]
[1732990826515,0.37807551,96973.0,96972.0,0.00534234]
[1732990827498,0.37807551,96973.0,96972.0,0.0027278]
[1732990828168,0.37807551,96973.0,96972.0,0.00534234]
[1732990828940,0.37807551,96973.0,96972.0,0.0027278]
[1732990829169,0.37807551,96973.0,96972.0,0.00534234]
[1732990829412,0.37807551,96973.0,96972.0,0.0027278]
[1732990829636,0.37807551,96973.0,96972.0,0.00534234]
[1732990830210,0.37807551,96973.0,96972.0,0.0027278]
[1732990830554,0.37807551,96973.0,96972.0,0.00533844]
[1732990832820,0.37807551,96973.0,96972.0,0.0027278]
[1732990833035,0.37807551,96973.0,96972.0,0.00538189]
[1732990834373,0.37807551,96973.0,96972.0,0.0027278]
[1732990835485,0.37807551,96973.0,96972.0,0.28030581]
[1732990835697,0.37807551,96973.0,96972.0,0.0027278]
[1732990835906,0.37807551,96973.0,96972.0,0.28297845]
[1732990836117,0.37807551,96973.0,96972.0,0.0027278]
[1732990836327,0.37807551,96973.0,96972.0,0.00538381]
[1732990836535,0.37807551,96973.0,96972.0,0.0027278]
[1732990836972,0.37807551,96973.0,96972.0,0.00538381]
[1732990837408,0.37807551,96973.0,96972.0,0.0027278]
[1732990838888,0.37807551,96973.0,96972.0,0.00538341]
[1732990840673,0.37807551,96973.0,96972.0,0.0027278]
[1732990840904,0.37807551,96973.0,96972.0,0.00538341]
[1732990842971,0.37807551,96973.0,96970.0,0.00017944]
[1732990842972,0.27495451,96973.0,96967.0,0.38148042]
[1732990843198,0.103126,96968.0,96967.0,0.38154019]
[1732990843410,0.20597121,96968.0,96967.0,0.38154019]
[1732990843628,0.20597121,96968.0,96967.0,5.977e-05]
[1732990844487,0.20597121,96968.0,96967.0,0.00105977]
[1732990845147,0.20597121,96968.0,96967.0,5.977e-05]
[1732990845613,0.21297121,96968.0,96967.0,0.00105977]
[1732990845842,0.21297121,96968.0,96967.0,5.977e-05]
[1732990846097,0.22297121,96968.0,96967.0,0.00105977]
[1732990849451,0.24334119,96968.0,96967.0,0.00105977]
[1732990852284,0.24334119,96968.0,96967.0,0.00278797]
[1732990854586,0.22297121,96968.0,96967.0,0.00278797]
[1732990860035,0.22297121,96968.0,96967.0,0.00534221]
[1732990862554,0.22297121,96968.0,96967.0,0.00278797]
[1732990862755,0.22297121,96968.0,96967.0,0.00534221]
[1732990863845,0.22297121,96968.0,96967.0,0.00278797]
[1732990864715,0.22297121,96968.0,96967.0,0.00534221]
[1732990866237,0.22297121,96968.0,96967.0,0.00278797]
[1732990866430,0.22297121,96968.0,96967.0,0.00534151]
[1732990866633,0.22297121,96968.0,96967.0,0.00278797]
[1732990876683,0.34967121,96968.0,96967.0,0.00278797]
[1732990876949,0.55490821,96968.0,96967.0,0.00278797]
[1732990877445,0.55490821,96968.0,96967.0,0.00534319]
[1732990877923,0.72790821,96968.0,96967.0,0.00434319]
[1732990878153,0.72790821,96968.0,96967.0,0.00534319]
[1732990878154,0.55790821,96968.0,96967.0,0.00534319]
[1732990878393,0.57190821,96968.0,96967.0,0.23712177]
[1732990878648,0.56290821,96968.0,96967.0,0.00434319]
[1732990878883,0.57190821,96968.0,96967.0,0.00534319]
[1732990879836,0.55790821,96968.0,96967.0,0.00434319]
[1732990880329,1.25790821,96968.0,96967.0,0.00434319]
[1732990880563,1.26290821,96968.0,96967.0,0.00434319]
[1732990880845,1.26290821,96968.0,96967.0,0.00178797]
[1732990881065,1.25790821,96968.0,96967.0,0.00178797]
[1732990881316,1.26690821,96968.0,96967.0,0.00278797]
[1732990881539,1.27590821,96968.0,96967.0,0.00378797]
[1732990881781,1.26690821,96968.0,96967.0,0.00278797]
[1732990882271,1.27590821,96968.0,96967.0,0.00378797]
[1732990883244,1.96390821,96968.0,96967.0,0.00378797]
[1732990885740,1.98422975,96968.0,96967.0,0.00378797]
[1732990885987,1.25199275,96968.0,96967.0,0.00378797]
[1732990886241,1.28414437,96968.0,96967.0,0.00378797]
[1732990886502,1.25199275,96968.0,96967.0,0.00378797]
[1732990886759,1.24199275,96968.0,96967.0,0.00345609]
[1732990886993,0.54499275,96968.0,96967.0,0.00245609]
[1732990887228,0.55399275,96968.0,96967.0,0.00345609]
[1732990887458,0.55399275,96968.0,96967.0,0.00590339]
[1732990887693,0.53599275,96968.0,96967.0,0.00390339]
[1732990887926,1.23599275,96968.0,96967.0,0.00390339]
[1732990888183,0.55399275,96968.0,96967.0,0.00590339]
[1732990888436,0.55399275,96968.0,96967.0,0.00345609]
[1732990888688,0.53599275,96968.0,96967.0,0.00390339]
[1732990888926,0.54499275,96968.0,96967.0,0.00490339]
[1732990889681,0.52467121,96968.0,96967.0,0.00245609]
[1732990890193,0.53367121,96968.0,96967.0,0.00345609]
[1732990892628,1.22167121,96968.0,96967.0,0.00345609]
[1732990894475,1.92167121,96968.0,96967.0,0.00345609]
[1732990896124,1.93167121,96968.0,96967.0,0.00345609]
[1732990899105,1.96381722,96968.0,96967.0,0.00345609]
[1732990901958,1.96554542,96968.0,96967.0,0.00345609]
[1732990903065,1.94254542,96968.0,96967.0,0.00345609]
[1732990905993,1.25454542,96968.0,96967.0,0.00345609]
[1732990906844,0.55454542,96968.0,96967.0,0.00345609]
[1732990909907,1.25454542,96968.0,96967.0,0.00345609]
[1732990913618,0.55454542,96968.0,96967.0,0.00345609]
[1732990916497,1.25454542,96968.0,96967.0,0.00345609]
[1732990916707,1.94254542,96968.0,96967.0,0.00345609]
[1732990919534,1.24254542,96968.0,96967.0,0.00345609]
[1732990920650,0.55454542,96968.0,96967.0,0.00345609]
[1732990921074,0.55454542,96968.0,96967.0,0.00628837]
[1732990921720,0.55454542,96968.0,96967.0,0.2379785]
[1732990921964,0.43864959,96968.0,96967.0,0.2379785]
[1732990922184,0.43864959,96968.0,96967.0,0.00628837]
[1732990922399,1.13864959,96968.0,96967.0,0.00628837]
[1732990923322,1.13864959,96968.0,96967.0,0.00345609]
[1732990923973,0.43864959,96968.0,96967.0,0.00345609]
[1732990924389,0.43864959,96968.0,96967.0,0.00628326]
[1732990924621,0.41784542,96968.0,96967.0,0.00345609]
[1732990925067,0.40784542,96968.0,96967.0,0.00345609]
[1732990925707,0.57784542,96968.0,96967.0,0.00345609]
[1732990926575,0.58784542,96968.0,96967.0,0.00345609]
[1732990927004,0.58784542,96968.0,96967.0,0.28151395]
[1732990927459,0.58784542,96968.0,96967.0,0.28434112]
[1732990928290,0.55569941,96968.0,96967.0,0.28434112]
[1732990929197,0.55569941,96968.0,96967.0,0.00628326]
[1732990930122,0.54569941,96968.0,96967.0,0.00628326]
[1732990930357,0.55569941,96968.0,96967.0,0.00628326]
[1732990931079,0.55569941,96968.0,96967.0,0.00345609]
[1732990931331,0.55569941,96968.0,96967.0,0.00628326]
[1732990933551,0.55569941,96968.0,96967.0,0.00699005]
[1732990938950,0.58789891,96968.0,96967.0,0.00699005]
[1732990939183,0.55569941,96968.0,96967.0,0.00699005]
[1732990941956,0.54569941,96968.0,96967.0,0.00699005]
[1732990942206,0.55569941,96968.0,96967.0,0.00699005]
[1732990943224,0.58790066,96968.0,96967.0,0.00699005]
[1732990947782,0.58790066,96968.0,96967.0,0.00345609]
[1732990948007,0.58790066,96968.0,96967.0,0.00702085]
[1732990948237,0.58790066,96968.0,96967.0,0.00345609]
[1732990948455,0.58790066,96968.0,96967.0,0.00702085]
[1732990950508,0.57790066,96968.0,96967.0,0.00702085]
[1732990950733,0.58790066,96968.0,96967.0,0.00702085]
[1732990951176,0.41790066,96968.0,96967.0,0.00702085]
[1732990956307,0.58790066,96968.0,96967.0,0.00702085]
[1732990959266,0.41790066,96968.0,96967.0,0.00702085]
[1732990960656,0.42790066,96968.0,96967.0,0.00702085]
[1732990960915,0.55470066,96968.0,96967.0,0.23867622]
[1732990961138,0.55470066,96968.0,96967.0,0.00702085]
[1732990964204,0.72470066,96968.0,96967.0,0.00702085]
[1732990964446,0.55470066,96968.0,96967.0,0.00702085]
[1732990969464,1.25470066,96968.0,96967.0,0.00702085]
[1732990969732,1.42470066,96968.0,96967.0,0.00345609]
[1732990970409,0.72470066,96968.0,96967.0,0.00345609]
[1732990971068,0.72470066,96968.0,96967.0,0.00703937]
[1732990971276,0.72470066,96968.0,96967.0,0.00345609]
[1732990971565,0.72470066,96968.0,96967.0,0.00703937]
[1732990971802,0.72470066,96968.0,96967.0,2.8e-07]
[1732990971803,0.74770066,96968.0,96967.0,2.8e-07]
[1732990972043,0.74770066,96968.0,96967.0,3.1e-07]
[1732990972237,0.043,96963.0,96962.0,0.001728]
[1732990972504,0.55437846,96963.0,96962.0,0.00179613]
[1732990972753,0.55437846,96963.0,96962.0,0.00455234]
[1732990972996,0.57051999,96963.0,96962.0,0.00179613]
[1732990973444,0.57851999,96963.0,96962.0,1.3e-07]
[1732990973945,0.58751999,96963.0,96962.0,0.00100013]
[1732990974381,1.28751999,96963.0,96962.0,0.00100013]
[1732990975056,1.28751999,96963.0,96962.0,1.3e-07]
[1732990976966,1.27951999,96963.0,96962.0,1.3e-07]
[1732990977425,0.123136,96959.0,96958.0,0.0008639]
[1732990977656,1.10818246,96959.0,96958.0,0.0008639]
[1732990978350,0.40818246,96959.0,96958.0,0.0008639]
[1732990980156,0.41718246,96959.0,96958.0,0.0008639]
[1732990980398,0.42618246,96959.0,96958.0,0.0008639]
[1732990981325,0.49888246,96959.0,96958.0,9e-07]
[1732990981615,0.57428246,96959.0,96958.0,9e-07]
[1732990983434,1.27428246,96959.0,96958.0,9e-07]
[1732990983660,1.37711392,96959.0,96958.0,9e-07]
[1732990983912,0.57484323,96959.0,96958.0,9e-07]
[1732990984140,0.398249,96947.0,96946.0,9e-07]
[1732990984361,0.53329546,96947.0,96946.0,9e-07]
[1732990984608,0.55629546,96947.0,96946.0,9e-07]
[1732990985331,0.55629546,96947.0,96933.0,9e-07]
[1732990985332,0.02,96934.0,96933.0,9e-07]
[1732990985565,0.44870721,96934.0,96933.0,9e-07]
[1732990985794,0.48146923,96934.0,96933.0,9e-07]
[1732990986485,0.296169,96928.0,96927.0,9e-07]
[1732990986708,1.13121546,96928.0,96927.0,9e-07]
[1732990987381,1.13197711,96928.0,96927.0,9e-07]
[1732990987611,1.14097711,96928.0,96927.0,9e-07]
[1732990987838,1.13203661,96928.0,96927.0,9e-07]
[1732990988338,1.15003661,96928.0,96927.0,9e-07]
[1732990988562,1.14103661,96928.0,96927.0,9e-07]
[1732990988786,1.13203661,96928.0,96927.0,9e-07]
[1732990989004,1.14103661,96928.0,96927.0,9e-07]
[1732990989471,1.21673661,96928.0,96927.0,9e-07]
[1732990989922,1.22573661,96928.0,96927.0,9e-07]
[1732990990832,1.20273661,96928.0,96927.0,9e-07]
[1732990991054,1.19373661,96928.0,96927.0,9e-07]
[1732990991288,1.17053536,96928.0,96927.0,9e-07]
[1732990991510,1.20262074,96928.0,96927.0,9e-07]
[1732990991738,1.19373675,96928.0,96927.0,9e-07]
[1732990992197,1.20273675,96928.0,96927.0,9e-07]
[1732990995617,0.273177,96920.0,96919.0,2e-07]
[1732990995902,1.07602221,96920.0,96919.0,2e-07]
[1732990996140,1.07689987,96920.0,96919.0,2e-07]
[1732990997061,1.08589987,96920.0,96919.0,2e-07]
[1732990998197,1.09489987,96920.0,96919.0,2e-07]
[1732991000292,0.39489987,96920.0,96919.0,2e-07]
[1732991002148,0.39402221,96920.0,96919.0,2e-07]
[1732991003043,1.09402221,96920.0,96919.0,2e-07]
[1732991005414,1.28752221,96920.0,96919.0,2e-07]
[1732991005661,1.22868482,96920.0,96919.0,2e-07]
[1732991006804,1.22954922,96920.0,96919.0,2e-07]
[1732991010657,1.40004922,96920.0,96919.0,2e-07]
[1732991014067,1.50288068,96920.0,96919.0,2e-07]
[1732991014295,1.33238068,96920.0,96919.0,2e-07]
[1732991014508,1.39884074,96920.0,96919.0,2e-07]
[1732991014726,1.56934074,96920.0,96919.0,2e-07]
[1732991019909,1.54908068,96920.0,96919.0,2e-07]
[1732991020143,1.65758068,96920.0,96919.0,2e-07]
[1732991020366,1.48708068,96920.0,96919.0,2e-07]